[Event "Titled Tuesday Blitz November 2 2021"]
[White "Yeletsky, Ivan"]
[Black "Ezat, Mohamed"]
[WhiteFideId "24180327"]
[BlackFideId "10600906"]
[WhiteElo "2352"]
[BlackElo "2424"]
[Result "1-0"]
[Round "02"]
[TimeControl "180+1"]
[Date "2021.11.02"]
[WhiteClock "0:01:16"]
[BlackClock "0:00:19"]

1. e4 {[%clk 0:03:00]}  c6 {[%clk 0:02:56]} 2. g3 {[%clk 0:02:59]}  d5 {[%clk 0:02:50]} 3. Nc3 {[%clk 0:02:59]}  e5 {[%clk 0:02:21]} 4. d3 {[%clk 0:02:58]}  Nf6 {[%clk 0:02:20]} 5. Bg2 {[%clk 0:02:58]}  h6 {[%clk 0:02:17]} 6. Qe2 {[%clk 0:02:50]}  Bb4 {[%clk 0:01:48]} 7. Bd2 {[%clk 0:02:46]}  O-O {[%clk 0:01:46]} 8. Nf3 {[%clk 0:02:46]}  Qa5 {[%clk 0:01:42]} 9. a3 {[%clk 0:02:41]}  Bg4 {[%clk 0:01:41]} 10. O-O {[%clk 0:02:38]}  Bxc3 {[%clk 0:01:37]} 11. Bxc3 {[%clk 0:02:38]}  Qa6 {[%clk 0:01:28]} 12. exd5 {[%clk 0:02:30]}  Re8 {[%clk 0:01:18]} 13. dxc6 {[%clk 0:02:06]}  Nxc6 {[%clk 0:01:15]} 14. h3 {[%clk 0:02:07]}  Bh5 {[%clk 0:01:11]} 15. g4 {[%clk 0:01:56]}  Bg6 {[%clk 0:01:10]} 16. Nxe5 {[%clk 0:01:39]}  Nxe5 {[%clk 0:00:41]} 17. Bxe5 {[%clk 0:01:40]}  Qb5 {[%clk 0:00:41]} 18. f4 {[%clk 0:01:37]}  Nd7 {[%clk 0:00:36]} 19. a4 {[%clk 0:01:27]}  Qxb2 {[%clk 0:00:31]} 20. Bxb2 {[%clk 0:01:20]}  Rxe2 {[%clk 0:00:30]} 21. Rf2 {[%clk 0:01:21]}  Rxf2 {[%clk 0:00:26]} 22. Kxf2 {[%clk 0:01:21]}  Rb8 {[%clk 0:00:25]} 23. f5 {[%clk 0:01:20]}  Bh7 {[%clk 0:00:25]} 24. Bd4 {[%clk 0:01:20]}  a6 {[%clk 0:00:24]} 25. a5 {[%clk 0:01:17]}  Kf8 {[%clk 0:00:22]} 26. Rb1 {[%clk 0:01:17]}  f6 {[%clk 0:00:19]} 27. Rxb7 {[%clk 0:01:16]} 1-0


[Site "https://www.chess.com"]

[Event "Titled Tuesday Blitz November 2 2021"]
[White "Andreikin, Dmitry"]
[Black "Yanchenko, Roman"]
[WhiteFideId "4158814"]
[BlackFideId "4137329"]
[WhiteElo "2736"]
[BlackElo "2514"]
[Result "1-0"]
[Round "03"]
[TimeControl "180+1"]
[Date "2021.11.02"]
[WhiteClock "0:01:15"]
[BlackClock "0:00:27"]

1. d4 {[%clk 0:02:57]}  d5 {[%clk 0:02:53]} 2. c4 {[%clk 0:02:55]}  c6 {[%clk 0:02:53]} 3. cxd5 {[%clk 0:02:53]}  cxd5 {[%clk 0:02:54]} 4. Nc3 {[%clk 0:02:53]}  Nf6 {[%clk 0:02:54]} 5. Nf3 {[%clk 0:02:53]}  Nc6 {[%clk 0:02:54]} 6. Bf4 {[%clk 0:02:53]}  e6 {[%clk 0:02:53]} 7. e3 {[%clk 0:02:53]}  Bd6 {[%clk 0:02:53]} 8. Bg3 {[%clk 0:02:53]}  O-O {[%clk 0:02:53]} 9. Bd3 {[%clk 0:02:52]}  h6 {[%clk 0:02:53]} 10. Rc1 {[%clk 0:02:44]}  a6 {[%clk 0:02:53]} 11. Ne5 {[%clk 0:02:44]}  Bb8 {[%clk 0:02:43]} 12. f4 {[%clk 0:02:40]}  Nd7 {[%clk 0:02:17]} 13. Qh5 {[%clk 0:02:36]}  Ndxe5 {[%clk 0:02:06]} 14. fxe5 {[%clk 0:02:36]}  f5 {[%clk 0:02:06]} 15. exf6 {[%clk 0:02:29]}  Bxg3+ {[%clk 0:02:05]} 16. hxg3 {[%clk 0:02:29]}  Qxf6 {[%clk 0:02:05]} 17. Rf1 {[%clk 0:02:12]}  Qg5 {[%clk 0:01:56]} 18. Qxg5 {[%clk 0:01:56]}  Rxf1+ {[%clk 0:01:55]} 19. Bxf1 {[%clk 0:01:54]}  hxg5 {[%clk 0:01:56]} 20. Na4 {[%clk 0:01:54]}  Bd7 {[%clk 0:01:31]} 21. Nc5 {[%clk 0:01:53]}  Bc8 {[%clk 0:01:28]} 22. Nxa6 {[%clk 0:01:50]}  Nxd4 {[%clk 0:01:28]} 23. Nc7 {[%clk 0:01:46]}  Rxa2 {[%clk 0:01:23]} 24. exd4 {[%clk 0:01:45]}  Rxb2 {[%clk 0:01:23]} 25. Nxd5 {[%clk 0:01:41]}  Bd7 {[%clk 0:01:23]} 26. Rc7 {[%clk 0:01:37]}  Rb1+ {[%clk 0:01:14]} 27. Kf2 {[%clk 0:01:37]}  Rb2+ {[%clk 0:00:57]} 28. Kg1 {[%clk 0:01:36]}  Ba4 {[%clk 0:00:57]} 29. Ne7+ {[%clk 0:01:30]}  Kf7 {[%clk 0:00:57]} 30. Nc6+ {[%clk 0:01:28]}  Kf8 {[%clk 0:00:52]} 31. Ne5 {[%clk 0:01:27]}  Rb1 {[%clk 0:00:51]} 32. Kf2 {[%clk 0:01:26]}  Rb2+ {[%clk 0:00:51]} 33. Kf3 {[%clk 0:01:25]}  Bd1+ {[%clk 0:00:50]} 34. Ke3 {[%clk 0:01:23]}  Bh5 {[%clk 0:00:46]} 35. g4 {[%clk 0:01:19]}  Be8 {[%clk 0:00:45]} 36. Bc4 {[%clk 0:01:19]}  Rxg2 {[%clk 0:00:44]} 37. Bxe6 {[%clk 0:01:19]}  Rb2 {[%clk 0:00:41]} 38. d5 {[%clk 0:01:18]}  Rb3+ {[%clk 0:00:38]} 39. Ke4 {[%clk 0:01:18]}  g6 {[%clk 0:00:26]} 40. d6 {[%clk 0:01:15]}  Rb4+ {[%clk 0:00:27]} 41. Ke3 {[%clk 0:01:15]} 1-0


[Site "https://www.chess.com"]

[Event "Titled Tuesday Blitz November 2 2021"]
[White "De Silva, L M S T"]
[Black "Terry, Renato"]
[WhiteFideId "9953698"]
[BlackFideId "3803457"]
[WhiteElo "1621"]
[BlackElo "2577"]
[Result "0-1"]
[Round "03"]
[TimeControl "180+1"]
[Date "2021.11.02"]
[WhiteClock "0:00:19"]
[BlackClock "0:00:36"]

1. Nf3 {[%clk 0:03:00]}  Nf6 {[%clk 0:02:57]} 2. b3 {[%clk 0:03:01]}  d5 {[%clk 0:02:54]} 3. Bb2 {[%clk 0:03:00]}  c6 {[%clk 0:02:54]} 4. e3 {[%clk 0:03:01]}  Bg4 {[%clk 0:02:55]} 5. c4 {[%clk 0:03:01]}  e6 {[%clk 0:02:48]} 6. Be2 {[%clk 0:03:00]}  Nbd7 {[%clk 0:02:46]} 7. O-O {[%clk 0:02:58]}  Bd6 {[%clk 0:02:45]} 8. d4 {[%clk 0:02:57]}  O-O {[%clk 0:02:45]} 9. Nc3 {[%clk 0:02:55]}  a6 {[%clk 0:02:43]} 10. h3 {[%clk 0:02:53]}  Bh5 {[%clk 0:02:43]} 11. Nd2 {[%clk 0:02:50]}  Bg6 {[%clk 0:02:43]} 12. f4 {[%clk 0:02:50]}  h6 {[%clk 0:02:25]} 13. c5 {[%clk 0:02:48]}  Bc7 {[%clk 0:02:17]} 14. b4 {[%clk 0:02:48]}  Ne4 {[%clk 0:02:15]} 15. Ndxe4 {[%clk 0:02:46]}  dxe4 {[%clk 0:02:15]} 16. Bc4 {[%clk 0:02:43]}  Nf6 {[%clk 0:02:14]} 17. Qe2 {[%clk 0:02:35]}  Nd5 {[%clk 0:02:04]} 18. Bxd5 {[%clk 0:02:34]}  exd5 {[%clk 0:02:01]} 19. a4 {[%clk 0:02:34]}  Qh4 {[%clk 0:01:50]} 20. Qf2 {[%clk 0:02:21]}  Qh5 {[%clk 0:01:49]} 21. a5 {[%clk 0:02:10]}  Bh7 {[%clk 0:01:45]} 22. Ne2 {[%clk 0:02:09]}  f5 {[%clk 0:01:40]} 23. Ng3 {[%clk 0:02:08]}  Qf7 {[%clk 0:01:36]} 24. Ne2 {[%clk 0:02:07]}  g5 {[%clk 0:01:35]} 25. Kh1 {[%clk 0:02:05]}  Qh5 {[%clk 0:01:33]} 26. Ng3 {[%clk 0:01:55]}  Qg6 {[%clk 0:01:30]} 27. Ne2 {[%clk 0:01:55]}  Rf7 {[%clk 0:01:29]} 28. Rg1 {[%clk 0:01:53]}  Raf8 {[%clk 0:01:29]} 29. Raf1 {[%clk 0:01:53]}  Rf6 {[%clk 0:01:20]} 30. Bc1 {[%clk 0:01:52]}  Kf7 {[%clk 0:01:20]} 31. Bd2 {[%clk 0:01:49]}  Ke8 {[%clk 0:01:20]} 32. g3 {[%clk 0:01:49]}  Qh5 {[%clk 0:01:18]} 33. Qh2 {[%clk 0:01:49]}  Bg8 {[%clk 0:01:14]} 34. h4 {[%clk 0:01:46]}  Qg4 {[%clk 0:01:07]} 35. Rf2 {[%clk 0:01:39]}  Bf7 {[%clk 0:01:03]} 36. Rgg2 {[%clk 0:01:10]}  Rg8 {[%clk 0:00:54]} 37. Kg1 {[%clk 0:01:10]}  Bh5 {[%clk 0:00:54]} 38. Kf1 {[%clk 0:01:10]}  Rfg6 {[%clk 0:00:55]} 39. Nc3 {[%clk 0:00:27]}  Bd8 {[%clk 0:00:55]} 40. hxg5 {[%clk 0:00:24]}  hxg5 {[%clk 0:00:56]} 41. Qg1 {[%clk 0:00:24]}  Qh3 {[%clk 0:00:42]} 42. Qh2 {[%clk 0:00:18]}  Qg4 {[%clk 0:00:43]} 43. Qg1 {[%clk 0:00:18]}  gxf4 {[%clk 0:00:37]} 44. gxf4 {[%clk 0:00:19]}  Qh3 {[%clk 0:00:38]} 45. Qh2 {[%clk 0:00:19]}  Qxh2 {[%clk 0:00:36]} 0-1


[Site "https://www.chess.com"]

[Event "Titled Tuesday Blitz November 2 2021"]
[White "Jobava, Baadur"]
[Black "Gritsenko, Nikolai"]
[WhiteFideId "13601520"]
[BlackFideId "14112493"]
[WhiteElo "2731"]
[BlackElo "2389"]
[Result "1-0"]
[Round "03"]
[TimeControl "180+1"]
[Date "2021.11.02"]
[WhiteClock "0:00:22"]
[BlackClock "0:00:29"]

1. e4 {[%clk 0:03:00]}  e5 {[%clk 0:02:59]} 2. d4 {[%clk 0:03:01]}  exd4 {[%clk 0:02:59]} 3. Nf3 {[%clk 0:03:01]}  Nc6 {[%clk 0:02:58]} 4. Nxd4 {[%clk 0:03:01]}  d6 {[%clk 0:02:57]} 5. Nc3 {[%clk 0:02:59]}  Nf6 {[%clk 0:02:57]} 6. g3 {[%clk 0:02:57]}  g6 {[%clk 0:02:56]} 7. Bg2 {[%clk 0:02:57]}  Bd7 {[%clk 0:02:56]} 8. O-O {[%clk 0:02:57]}  Bg7 {[%clk 0:02:56]} 9. Nde2 {[%clk 0:02:56]}  O-O {[%clk 0:02:55]} 10. h3 {[%clk 0:02:55]}  Re8 {[%clk 0:02:51]} 11. g4 {[%clk 0:02:52]}  h5 {[%clk 0:02:45]} 12. g5 {[%clk 0:02:53]}  Nh7 {[%clk 0:02:45]} 13. f4 {[%clk 0:02:52]}  a6 {[%clk 0:02:44]} 14. Kh2 {[%clk 0:02:36]}  b5 {[%clk 0:02:43]} 15. Nd5 {[%clk 0:02:35]}  Ne7 {[%clk 0:02:40]} 16. Ne3 {[%clk 0:02:33]}  Bc6 {[%clk 0:02:22]} 17. h4 {[%clk 0:02:28]}  f6 {[%clk 0:02:19]} 18. Nd4 {[%clk 0:02:15]}  Bd7 {[%clk 0:02:10]} 19. c3 {[%clk 0:02:13]}  c5 {[%clk 0:02:09]} 20. Nf3 {[%clk 0:02:11]}  Bc6 {[%clk 0:02:08]} 21. gxf6 {[%clk 0:02:06]}  Nxf6 {[%clk 0:02:05]} 22. Ng5 {[%clk 0:02:07]}  Bh6 {[%clk 0:01:53]} 23. Qc2 {[%clk 0:02:00]}  Qc8 {[%clk 0:01:15]} 24. Bd2 {[%clk 0:01:51]}  Qb7 {[%clk 0:01:14]} 25. e5 {[%clk 0:01:35]}  Bxg2 {[%clk 0:01:08]} 26. exf6 {[%clk 0:01:32]}  Bxg5 {[%clk 0:01:04]} 27. fxg5 {[%clk 0:01:22]}  Bxf1 {[%clk 0:01:00]} 28. fxe7 {[%clk 0:01:16]}  Kg7 {[%clk 0:00:56]} 29. Rxf1 {[%clk 0:01:11]}  Rxe7 {[%clk 0:00:55]} 30. Rf6 {[%clk 0:01:03]}  Re4 {[%clk 0:00:55]} 31. Qd3 {[%clk 0:00:41]}  d5 {[%clk 0:00:46]} 32. Nxd5 {[%clk 0:00:35]}  Rae8 {[%clk 0:00:42]} 33. Nf4 {[%clk 0:00:33]}  c4 {[%clk 0:00:38]} 34. Rxg6+ {[%clk 0:00:32]}  Kh7 {[%clk 0:00:37]} 35. Rh6+ {[%clk 0:00:33]}  Kg8 {[%clk 0:00:37]} 36. Qd5+ {[%clk 0:00:29]}  Qxd5 {[%clk 0:00:36]} 37. Nxd5 {[%clk 0:00:30]}  Re2+ {[%clk 0:00:36]} 38. Kg3 {[%clk 0:00:30]}  Rxd2 {[%clk 0:00:34]} 39. Nf6+ {[%clk 0:00:30]}  Kf7 {[%clk 0:00:34]} 40. Rh7+ {[%clk 0:00:29]}  Kg6 {[%clk 0:00:35]} 41. Rh6+ {[%clk 0:00:29]}  Kf7 {[%clk 0:00:35]} 42. Nxe8 {[%clk 0:00:29]}  Kxe8 {[%clk 0:00:35]} 43. Rxh5 {[%clk 0:00:28]}  Rxb2 {[%clk 0:00:35]} 44. Rh7 {[%clk 0:00:28]}  Kf8 {[%clk 0:00:33]} 45. h5 {[%clk 0:00:25]}  Rc2 {[%clk 0:00:32]} 46. h6 {[%clk 0:00:23]}  Rxc3+ {[%clk 0:00:32]} 47. Kg4 {[%clk 0:00:22]}  b4 {[%clk 0:00:31]} 48. Rc7 {[%clk 0:00:22]}  Rc1 {[%clk 0:00:30]} 49. Rc8+ {[%clk 0:00:21]}  Kf7 {[%clk 0:00:29]} 50. h7 {[%clk 0:00:22]} 1-0


[Site "https://www.chess.com"]

[Event "Titled Tuesday Blitz November 2 2021"]
[White "Kaasen, Tor Fredrik"]
[Black "Naroditsky, Daniel"]
[WhiteFideId "1516647"]
[BlackFideId "2026961"]
[WhiteElo "2349"]
[BlackElo "2608"]
[Result "0-1"]
[Round "03"]
[TimeControl "180+1"]
[Date "2021.11.02"]
[WhiteClock "0:00:07"]
[BlackClock "0:00:08"]

1. e4 {[%clk 0:03:00]}  e5 {[%clk 0:02:59]} 2. Nf3 {[%clk 0:03:01]}  Nc6 {[%clk 0:02:59]} 3. Bc4 {[%clk 0:03:01]}  Nf6 {[%clk 0:02:59]} 4. d3 {[%clk 0:03:01]}  h6 {[%clk 0:02:59]} 5. c3 {[%clk 0:03:01]}  g5 {[%clk 0:02:59]} 6. O-O {[%clk 0:02:51]}  Bg7 {[%clk 0:02:58]} 7. d4 {[%clk 0:02:50]}  d6 {[%clk 0:02:56]} 8. dxe5 {[%clk 0:02:49]}  dxe5 {[%clk 0:02:55]} 9. Qxd8+ {[%clk 0:02:49]}  Nxd8 {[%clk 0:02:56]} 10. Nxe5 {[%clk 0:02:47]}  Nxe4 {[%clk 0:02:51]} 11. Re1 {[%clk 0:02:47]}  Bf5 {[%clk 0:02:42]} 12. Nxf7 {[%clk 0:02:36]}  Nxf7 {[%clk 0:02:41]} 13. f3 {[%clk 0:02:36]}  Nd6 {[%clk 0:02:26]} 14. fxe4 {[%clk 0:02:30]}  Bg6 {[%clk 0:02:26]} 15. Bd5 {[%clk 0:02:24]}  c6 {[%clk 0:02:13]} 16. e5 {[%clk 0:02:24]}  Nf7 {[%clk 0:02:13]} 17. Bxf7+ {[%clk 0:02:14]}  Kxf7 {[%clk 0:02:14]} 18. Nd2 {[%clk 0:02:14]}  Ke6 {[%clk 0:02:12]} 19. Nf3 {[%clk 0:02:13]}  c5 {[%clk 0:02:13]} 20. Be3 {[%clk 0:02:09]}  b6 {[%clk 0:02:14]} 21. Nd2 {[%clk 0:02:08]}  Bd3 {[%clk 0:02:08]} 22. a4 {[%clk 0:01:52]}  Rhe8 {[%clk 0:01:37]} 23. a5 {[%clk 0:01:52]}  Kd5 {[%clk 0:01:28]} 24. Nb3 {[%clk 0:01:24]}  Bxe5 {[%clk 0:01:21]} 25. Rad1 {[%clk 0:01:21]}  Kc4 {[%clk 0:01:21]} 26. Nd2+ {[%clk 0:01:10]}  Kb5 {[%clk 0:01:21]} 27. Nf3 {[%clk 0:01:10]}  Bc4 {[%clk 0:01:14]} 28. Bxc5 {[%clk 0:00:56]}  Bxh2+ {[%clk 0:01:11]} 29. Kxh2 {[%clk 0:00:57]}  bxc5 {[%clk 0:01:12]} 30. Rxe8 {[%clk 0:00:46]}  Rxe8 {[%clk 0:01:10]} 31. Rd6 {[%clk 0:00:46]}  Re6 {[%clk 0:01:08]} 32. Rd7 {[%clk 0:00:45]}  a6 {[%clk 0:01:07]} 33. b4 {[%clk 0:00:37]}  Be2 {[%clk 0:00:49]} 34. Rb7+ {[%clk 0:00:36]}  Kc4 {[%clk 0:00:47]} 35. Rb6 {[%clk 0:00:32]}  Re8 {[%clk 0:00:38]} 36. Rxh6 {[%clk 0:00:20]}  cxb4 {[%clk 0:00:39]} 37. cxb4 {[%clk 0:00:20]}  g4 {[%clk 0:00:35]} 38. Rxa6 {[%clk 0:00:11]}  gxf3 {[%clk 0:00:34]} 39. gxf3 {[%clk 0:00:12]}  Kxb4 {[%clk 0:00:31]} 40. Rb6+ {[%clk 0:00:12]}  Kxa5 {[%clk 0:00:31]} 41. Rb2 {[%clk 0:00:12]}  Bxf3 {[%clk 0:00:30]} 42. Kg3 {[%clk 0:00:13]}  Bd5 {[%clk 0:00:26]} 43. Kf4 {[%clk 0:00:13]}  Ka4 {[%clk 0:00:26]} 44. Kg5 {[%clk 0:00:13]}  Bb3 {[%clk 0:00:26]} 45. Kf4 {[%clk 0:00:12]}  Kb4 {[%clk 0:00:17]} 46. Rd2 {[%clk 0:00:11]}  Kc5 {[%clk 0:00:15]} 47. Rd3 {[%clk 0:00:10]}  Bc4 {[%clk 0:00:15]} 48. Rd7 {[%clk 0:00:11]}  Bd5 {[%clk 0:00:15]} 49. Ra7 {[%clk 0:00:10]}  Kd4 {[%clk 0:00:14]} 50. Ra4+ {[%clk 0:00:10]}  Bc4 {[%clk 0:00:15]} 51. Kf5 {[%clk 0:00:10]}  Rf8+ {[%clk 0:00:15]} 52. Kg4 {[%clk 0:00:08]}  Kd3 {[%clk 0:00:11]} 53. Kg5 {[%clk 0:00:08]}  Bd5 {[%clk 0:00:10]} 54. Rb4 {[%clk 0:00:08]}  Ke3 {[%clk 0:00:10]} 55. Ra4 {[%clk 0:00:08]}  Be4 {[%clk 0:00:07]} 56. Ra3+ {[%clk 0:00:08]}  Kd4 {[%clk 0:00:06]} 57. Ra4+ {[%clk 0:00:09]}  Ke5 {[%clk 0:00:07]} 58. Ra5+ {[%clk 0:00:09]}  Bd5 {[%clk 0:00:07]} 59. Kg4 {[%clk 0:00:07]}  Rg8+ {[%clk 0:00:07]} 60. Kh3 {[%clk 0:00:08]}  Ke4 {[%clk 0:00:07]} 61. Ra4+ {[%clk 0:00:07]}  Kf3 {[%clk 0:00:08]} 62. Ra3+ {[%clk 0:00:07]}  Kf2 {[%clk 0:00:08]} 63. Ra2+ {[%clk 0:00:07]}  Bxa2 {[%clk 0:00:08]} 0-1


[Site "https://www.chess.com"]

[Event "Titled Tuesday Blitz November 2 2021"]
[White "Matinian, Nikita"]
[Black "Bortnyk, Olexandr"]
[WhiteFideId "24129100"]
[BlackFideId "14120828"]
[WhiteElo "2464"]
[BlackElo "2723"]
[Result "1-0"]
[Round "03"]
[TimeControl "180+1"]
[Date "2021.11.02"]
[WhiteClock "0:01:26"]
[BlackClock "0:01:46"]

1. e4 {[%clk 0:03:00]}  g6 {[%clk 0:02:59]} 2. d4 {[%clk 0:03:00]}  Bg7 {[%clk 0:02:59]} 3. Nc3 {[%clk 0:03:01]}  a6 {[%clk 0:02:59]} 4. g4 {[%clk 0:03:01]}  b5 {[%clk 0:02:58]} 5. Bg2 {[%clk 0:03:00]}  Bb7 {[%clk 0:02:58]} 6. h4 {[%clk 0:02:57]}  h5 {[%clk 0:02:57]} 7. gxh5 {[%clk 0:02:57]}  gxh5 {[%clk 0:02:55]} 8. Nh3 {[%clk 0:02:54]}  d6 {[%clk 0:02:54]} 9. Rg1 {[%clk 0:02:42]}  b4 {[%clk 0:02:44]} 10. Nd5 {[%clk 0:02:35]}  Bxd5 {[%clk 0:02:44]} 11. exd5 {[%clk 0:02:35]}  Nf6 {[%clk 0:02:45]} 12. Bf3 {[%clk 0:02:26]}  Bh6 {[%clk 0:02:45]} 13. Bxh6 {[%clk 0:02:26]}  Rxh6 {[%clk 0:02:46]} 14. Qd2 {[%clk 0:02:26]}  Rh8 {[%clk 0:02:45]} 15. Qxb4 {[%clk 0:02:25]}  Nbd7 {[%clk 0:02:38]} 16. b3 {[%clk 0:02:09]}  Rb8 {[%clk 0:02:30]} 17. Qd2 {[%clk 0:02:07]}  Nb6 {[%clk 0:02:28]} 18. c4 {[%clk 0:02:07]}  Qd7 {[%clk 0:02:29]} 19. Ng5 {[%clk 0:02:07]}  Qf5 {[%clk 0:02:28]} 20. Qe3 {[%clk 0:01:53]}  Rg8 {[%clk 0:02:04]} 21. Kf1 {[%clk 0:01:51]}  Kf8 {[%clk 0:01:49]} 22. Re1 {[%clk 0:01:49]}  Re8 {[%clk 0:01:50]} 23. Ne6+ {[%clk 0:01:30]}  fxe6 {[%clk 0:01:46]} 24. Qh6+ {[%clk 0:01:30]}  Kf7 {[%clk 0:01:47]} 25. dxe6+ {[%clk 0:01:28]}  Qxe6 {[%clk 0:01:47]} 26. Bxh5+ {[%clk 0:01:26]}  Nxh5 {[%clk 0:01:46]} 1-0


[Site "https://www.chess.com"]

[Event "Titled Tuesday Blitz November 2 2021"]
[White "Nakamura, Hikaru"]
[Black "Postny, Evgeny"]
[WhiteFideId "2016192"]
[BlackFideId "2804344"]
[WhiteElo "2884"]
[BlackElo "2521"]
[Result "1-0"]
[Round "03"]
[TimeControl "180+1"]
[Date "2021.11.02"]
[WhiteClock "0:01:11"]
[BlackClock "0:00:02"]

1. Nf3 {[%clk 0:03:00]}  d5 {[%clk 0:02:58]} 2. e3 {[%clk 0:03:00]}  c5 {[%clk 0:02:57]} 3. b3 {[%clk 0:03:00]}  Nf6 {[%clk 0:02:57]} 4. Bb2 {[%clk 0:03:00]}  e6 {[%clk 0:02:56]} 5. d4 {[%clk 0:03:00]}  Nc6 {[%clk 0:02:56]} 6. Bd3 {[%clk 0:02:59]}  Bd6 {[%clk 0:02:52]} 7. O-O {[%clk 0:02:59]}  Qe7 {[%clk 0:02:52]} 8. Re1 {[%clk 0:02:43]}  e5 {[%clk 0:02:45]} 9. e4 {[%clk 0:02:36]}  dxe4 {[%clk 0:02:27]} 10. dxe5 {[%clk 0:02:32]}  Nxe5 {[%clk 0:01:45]} 11. Bxe4 {[%clk 0:02:30]}  Nxe4 {[%clk 0:01:04]} 12. Rxe4 {[%clk 0:02:29]}  Nxf3+ {[%clk 0:01:04]} 13. Qxf3 {[%clk 0:02:24]}  Be6 {[%clk 0:01:05]} 14. Bxg7 {[%clk 0:02:24]}  Rg8 {[%clk 0:01:05]} 15. Bf6 {[%clk 0:02:24]}  Qd7 {[%clk 0:00:57]} 16. Nc3 {[%clk 0:02:21]}  Be7 {[%clk 0:00:30]} 17. Bxe7 {[%clk 0:02:20]}  Kxe7 {[%clk 0:00:28]} 18. Rd1 {[%clk 0:02:16]}  Qc6 {[%clk 0:00:27]} 19. Nd5+ {[%clk 0:02:14]}  Kf8 {[%clk 0:00:27]} 20. Nf6 {[%clk 0:02:14]}  Rg7 {[%clk 0:00:25]} 21. Qf4 {[%clk 0:02:09]}  c4 {[%clk 0:00:09]} 22. g3 {[%clk 0:01:58]}  cxb3 {[%clk 0:00:08]} 23. cxb3 {[%clk 0:01:53]}  Rc8 {[%clk 0:00:08]} 24. Red4 {[%clk 0:01:50]}  Rg6 {[%clk 0:00:05]} 25. Rd8+ {[%clk 0:01:46]}  Ke7 {[%clk 0:00:05]} 26. Ng8+ {[%clk 0:01:10]}  Rxg8 {[%clk 0:00:02]} 27. Qh4+ {[%clk 0:01:11]}  f6 {[%clk 0:00:01]} 28. Qxh7+ {[%clk 0:01:11]}  Bf7 {[%clk 0:00:02]} 29. R8d7+ {[%clk 0:01:10]}  Qxd7 {[%clk 0:00:01]} 30. Rxd7+ {[%clk 0:01:11]}  Kxd7 {[%clk 0:00:02]} 31. Qxf7+ {[%clk 0:01:11]}  Kc6 {[%clk 0:00:03]} 32. Qxf6+ {[%clk 0:01:12]}  Kc5 {[%clk 0:00:03]} 33. h4 {[%clk 0:01:12]}  Rcf8 {[%clk 0:00:02]} 34. Qe7+ {[%clk 0:01:11]}  Kd4 {[%clk 0:00:02]} 35. Qxb7 {[%clk 0:01:11]} 1-0


[Site "https://www.chess.com"]

[Event "Titled Tuesday Blitz November 2 2021"]
[White "Ozen, Bahadir"]
[Black "Guseva, Marina"]
[WhiteFideId "6337058"]
[BlackFideId "4149351"]
[WhiteElo "2503"]
[BlackElo "2279"]
[Result "1-0"]
[Round "03"]
[TimeControl "180+1"]
[Date "2021.11.02"]
[WhiteClock "0:00:55"]
[BlackClock "0:00:04"]

1. Nf3 {[%clk 0:03:00]}  Nf6 {[%clk 0:02:58]} 2. e3 {[%clk 0:03:00]}  d5 {[%clk 0:02:57]} 3. c4 {[%clk 0:03:00]}  c6 {[%clk 0:02:57]} 4. Nc3 {[%clk 0:03:00]}  e6 {[%clk 0:02:55]} 5. b3 {[%clk 0:03:00]}  Bd6 {[%clk 0:02:54]} 6. Bb2 {[%clk 0:02:59]}  O-O {[%clk 0:02:54]} 7. Rc1 {[%clk 0:02:54]}  a6 {[%clk 0:02:11]} 8. d4 {[%clk 0:02:52]}  b5 {[%clk 0:02:06]} 9. Bd3 {[%clk 0:02:27]}  bxc4 {[%clk 0:02:04]} 10. bxc4 {[%clk 0:02:28]}  a5 {[%clk 0:02:03]} 11. O-O {[%clk 0:02:26]}  Ba6 {[%clk 0:02:02]} 12. Qe2 {[%clk 0:02:10]}  Nbd7 {[%clk 0:01:16]} 13. cxd5 {[%clk 0:01:55]}  Bxd3 {[%clk 0:01:14]} 14. Qxd3 {[%clk 0:01:56]}  cxd5 {[%clk 0:01:13]} 15. Nb5 {[%clk 0:01:56]}  Bb4 {[%clk 0:01:00]} 16. Rc6 {[%clk 0:01:42]}  Ne4 {[%clk 0:00:50]} 17. a3 {[%clk 0:01:37]}  Be7 {[%clk 0:00:48]} 18. Rfc1 {[%clk 0:01:34]}  Rb8 {[%clk 0:00:38]} 19. Bc3 {[%clk 0:01:28]}  a4 {[%clk 0:00:27]} 20. Be1 {[%clk 0:01:24]}  Rb6 {[%clk 0:00:24]} 21. Rc7 {[%clk 0:01:20]}  Ra6 {[%clk 0:00:22]} 22. h3 {[%clk 0:01:05]}  Ra8 {[%clk 0:00:21]} 23. R7c6 {[%clk 0:01:03]}  Qb8 {[%clk 0:00:15]} 24. Rb1 {[%clk 0:00:59]}  Qe8 {[%clk 0:00:12]} 25. Nc7 {[%clk 0:00:59]}  Qc8 {[%clk 0:00:11]} 26. Rbc1 {[%clk 0:00:57]}  Qd8 {[%clk 0:00:09]} 27. Nxa8 {[%clk 0:00:57]}  Qxa8 {[%clk 0:00:07]} 28. Rc7 {[%clk 0:00:58]}  Rd8 {[%clk 0:00:07]} 29. Qb5 {[%clk 0:00:58]}  Nf8 {[%clk 0:00:06]} 30. Rxe7 {[%clk 0:00:57]}  Nd6 {[%clk 0:00:05]} 31. Qd3 {[%clk 0:00:55]}  Nc4 {[%clk 0:00:04]} 32. Rc7 {[%clk 0:00:55]} 1-0


[Site "https://www.chess.com"]